[Event "Biel DQA Blitzn"]
[Site "Biel/Bienne, Switzerland"]
[Date "2022.07.17"]
[Round "11.2"]
[White "Moracchini, Margaux"]
[Black "Tamrazyan, Gohar"]
[Result "1-0"]
[TimeControl "3 min + 2 sec"]
[WhiteElo "1825"]
[BlackElo "1733"]

1. e4 {[%clk 00:03:03]} {[%emt 00:00:01]} c5 {[%clk 00:03:04]} 2. c3 {[%clk
00:03:04]} {[%emt 00:00:02]} d5 {[%clk 00:03:05]} 3. exd5 {[%clk 00:03:02]}
{[%emt 00:00:04]} Qxd5 {[%clk 00:03:06]} {[%emt 00:00:01]} 4. d4 {[%clk
00:03:03]} Nc6 {[%clk 00:03:07]} {[%emt 00:00:01]} 5. Nf3 {[%clk 00:03:04]} Bg4
{[%clk 00:03:08]} {[%emt 00:00:01]} 6. Be2 {[%clk 00:02:46]} {[%emt 00:00:20]}
cxd4 {[%clk 00:03:09]} {[%emt 00:00:01]} 7. cxd4 {[%clk 00:02:26]} {[%emt
00:00:22]} e6 {[%clk 00:02:57]} {[%emt 00:00:14]} 8. Nc3 {[%clk 00:02:21]}
{[%emt 00:00:07]} Qa5 {[%clk 00:02:58]} {[%emt 00:00:01]} 9. O-O {[%clk
00:02:19]} {[%emt 00:00:03]} Nf6 {[%clk 00:02:59]} {[%emt 00:00:01]} 10. h3
{[%clk 00:02:17]} {[%emt 00:00:04]} Bh5 {[%clk 00:02:56]} {[%emt 00:00:05]} 11.
Be3 {[%clk 00:02:14]} {[%emt 00:00:05]} Be7 {[%clk 00:02:44]} {[%emt 00:00:15]}
12. Qb3 {[%clk 00:02:11]} {[%emt 00:00:05]} Qb4 {[%clk 00:02:38]} {[%emt
00:00:08]} 13. Qc2 {[%clk 00:01:48]} {[%emt 00:00:25]} O-O {[%clk 00:02:27]}
{[%emt 00:00:13]} 14. a3 {[%clk 00:01:49]} {[%emt 00:00:02]} Qa5 {[%clk
00:02:04]} {[%emt 00:00:24]} 15. b4 {[%clk 00:01:38]} {[%emt 00:00:13]} Qd8
{[%clk 00:01:35]} {[%emt 00:00:32]} 16. Rfd1 {[%clk 00:01:30]} {[%emt
00:00:09]} Nd5 {[%clk 00:01:35]} {[%emt 00:00:03]} 17. Nxd5 {[%clk 00:01:18]}
{[%emt 00:00:14]} Qxd5 {[%clk 00:01:34]} {[%emt 00:00:02]} 18. Bc4 {[%clk
00:01:17]} {[%emt 00:00:03]} Qd6 {[%clk 00:01:20]} {[%emt 00:00:17]} 19. d5
{[%clk 00:00:51]} {[%emt 00:00:28]} Bxf3 {[%clk 00:01:07]} {[%emt 00:00:15]} 20.
gxf3 {[%clk 00:00:53]} Ne5 {[%clk 00:01:02]} {[%emt 00:00:08]} 21. dxe6 {[%clk
00:00:51]} {[%emt 00:00:04]} Nxf3+ {[%clk 00:00:55]} {[%emt 00:00:09]} 22. Kg2
{[%clk 00:00:52]} Nh4+ {[%clk 00:00:50]} {[%emt 00:00:08]} 23. Kf1 {[%clk
00:00:52]} {[%emt 00:00:01]} Qh2 {[%clk 00:00:48]} {[%emt 00:00:05]} 24. exf7+
{[%clk 00:00:52]} {[%emt 00:00:02]} Kh8 {[%clk 00:00:48]} {[%emt 00:00:02]} 25.
Qe4 {[%clk 00:00:46]} {[%emt 00:00:08]} Qxh3+ {[%clk 00:00:45]} {[%emt
00:00:05]} 26. Ke2 {[%clk 00:00:44]} {[%emt 00:00:03]} Bf6 {[%clk 00:00:42]}
{[%emt 00:00:06]} 27. Rh1 {[%clk 00:00:42]} {[%emt 00:00:04]} Qf5 {[%clk
00:00:31]} {[%emt 00:00:13]} 28. Qxf5 {[%clk 00:00:29]} {[%emt 00:00:15]} Nxf5
{[%clk 00:00:32]} {[%emt 00:00:01]} 29. Rad1 {[%clk 00:00:28]} {[%emt
00:00:03]} Nxe3 {[%clk 00:00:31]} {[%emt 00:00:04]} 30. fxe3 {[%clk 00:00:29]}
{[%emt 00:00:02]} a6 {[%clk 00:00:27]} {[%emt 00:00:06]} 31. Rd7 {[%clk
00:00:29]} b5 {[%clk 00:00:27]} {[%emt 00:00:02]} 32. Bb3 {[%clk 00:00:28]}
{[%emt 00:00:02]} h6 {[%clk 00:00:28]} {[%emt 00:00:02]} 33. Rhd1 {[%clk
00:00:24]} {[%emt 00:00:05]} Kh7 {[%clk 00:00:27]} {[%emt 00:00:03]} 34. Bc2+
{[%clk 00:00:25]} {[%emt 00:00:01]} g6 {[%clk 00:00:28]} {[%emt 00:00:01]} 35.
R1d6 {[%clk 00:00:24]} {[%emt 00:00:02]} Kg7 {[%clk 00:00:29]} {[%emt
00:00:01]} 36. Bb3 {[%clk 00:00:20]} {[%emt 00:00:06]} g5 {[%clk 00:00:26]}
{[%emt 00:00:05]} 37. Rc6 {[%clk 00:00:17]} {[%emt 00:00:05]} Rfd8 {[%clk
00:00:18]} {[%emt 00:00:10]} 38. Rdd6 {[%clk 00:00:18]} {[%emt 00:00:01]} Rxd6
{[%clk 00:00:17]} {[%emt 00:00:03]} 39. Rxd6 {[%clk 00:00:19]} Be7 {[%clk
00:00:16]} {[%emt 00:00:04]} 40. Rc6 {[%clk 00:00:17]} {[%emt 00:00:03]} Bf8
{[%clk 00:00:16]} {[%emt 00:00:03]} 41. Kf3 {[%clk 00:00:14]} {[%emt 00:00:05]}
a5 {[%clk 00:00:18]} 42. Rb6 {[%clk 00:00:06]} {[%emt 00:00:10]} axb4 {[%clk
00:00:16]} {[%emt 00:00:04]} 43. axb4 {[%clk 00:00:08]} Bxb4 {[%clk 00:00:10]}
{[%emt 00:00:08]} 44. Rxb5 {[%clk 00:00:09]} {[%emt 00:00:01]} Bf8 {[%clk
00:00:11]} 45. Bd5 {[%clk 00:00:09]} {[%emt 00:00:02]} Ra3 {[%clk 00:00:10]}
{[%emt 00:00:02]} 46. Rb7 {[%clk 00:00:07]} {[%emt 00:00:04]} Bc5 {[%clk
00:00:10]} {[%emt 00:00:02]} 47. Rb3 {[%clk 00:00:05]} {[%emt 00:00:04]} Ra7
{[%clk 00:00:08]} {[%emt 00:00:03]} 48. Kg4 {[%clk 00:00:05]} {[%emt 00:00:03]}
Re7 {[%clk 00:00:09]} {[%emt 00:00:01]} 49. e4 {[%clk 00:00:06]} Rd7 {[%clk
00:00:05]} {[%emt 00:00:07]} 50. Rf3 {[%emt 00:00:03]} Kf8 {[%clk 00:00:05]} 51.
Kh5 {[%clk 00:00:07]} Rd6 {[%clk 00:00:06]} {[%emt 00:00:01]} 52. Rf5 {[%clk
00:00:07]} {[%emt 00:00:03]} Ra6 {[%clk 00:00:08]} 53. Rf3 {[%clk 00:00:07]}
{[%emt 00:00:01]} Be7 {[%clk 00:00:09]} 54. Kg4 {[%clk 00:00:08]} {[%emt
00:00:02]} Rg6 {[%clk 00:00:10]} {[%emt 00:00:01]} 55. Rf5 {[%clk 00:00:06]}
{[%emt 00:00:04]} Rf6 {[%clk 00:00:11]} 56. Rxf6 {[%clk 00:00:07]} {[%emt
00:00:01]} Bxf6 {[%clk 00:00:12]} 57. Kh5 {[%clk 00:00:08]} Ke7 {[%clk
00:00:13]} {[%emt 00:00:02]} 58. Kxh6 {[%clk 00:00:08]} {[%emt 00:00:02]} g4
{[%clk 00:00:14]} 59. Kh7 {[%clk 00:00:03]} {[%emt 00:00:07]} g3 {[%clk
00:00:15]} {[%emt 00:00:01]} 60. e5 {[%clk 00:00:04]} {[%emt 00:00:01]} Bxe5
{[%clk 00:00:14]} {[%emt 00:00:04]} 61. Kg8 {[%clk 00:00:06]} g2 {[%clk
00:00:10]} {[%emt 00:00:06]} 62. Bxg2 {[%clk 00:00:07]} {[%emt 00:00:01]} Bd6
{[%clk 00:00:11]} {[%emt 00:00:01]} 63. f8=Q+ {[%clk 00:00:06]} {[%emt
00:00:03]} Ke6 {[%clk 00:00:12]} 64. Qf7+ {[%clk 00:00:07]} Ke5 {[%clk
00:00:13]} {[%emt 00:00:01]} 65. Qd5+ {[%clk 00:00:08]} 1-0

[Event "Biel DQA Blitzn"]
[Site "Biel/Bienne, Switzerland"]
[Date "2022.07.17"]
[Round "11.3"]
[White "Sumarriva Paulin, Laura"]
[Black "Zhuang, Yongzhe"]
[Result "1-0"]
[TimeControl "3 min + 2 sec"]
[WhiteElo "1886"]
[BlackElo "1681"]

1. e4 {[%clk 00:03:01]} {[%emt 00:00:02]} e5 {[%clk 00:03:03]} {[%emt
00:00:01]} 2. Bc4 {[%clk 00:03:01]} {[%emt 00:00:01]} Nf6 {[%clk 00:03:03]}
{[%emt 00:00:02]} 3. d3 {[%clk 00:03:02]} {[%emt 00:00:01]} Nc6 {[%clk
00:03:03]} {[%emt 00:00:02]} 4. Nf3 {[%clk 00:03:03]} {[%emt 00:00:02]} Bc5
{[%clk 00:03:03]} {[%emt 00:00:01]} 5. c3 {[%clk 00:03:03]} {[%emt 00:00:02]}
d6 {[%clk 00:03:00]} {[%emt 00:00:05]} 6. b4 {[%clk 00:03:02]} {[%emt
00:00:03]} Bb6 {[%clk 00:03:00]} {[%emt 00:00:02]} 7. a4 {[%clk 00:03:03]}
{[%emt 00:00:02]} a6 {[%clk 00:03:01]} {[%emt 00:00:02]} 8. O-O {[%clk
00:02:59]} {[%emt 00:00:05]} O-O {[%clk 00:02:59]} {[%emt 00:00:02]} 9. Bg5
{[%clk 00:02:58]} {[%emt 00:00:04]} h6 {[%clk 00:02:59]} {[%emt 00:00:02]} 10.
Bh4 {[%clk 00:02:59]} {[%emt 00:00:02]} Re8 {[%clk 00:02:43]} {[%emt 00:00:17]}
11. Nbd2 {[%clk 00:02:40]} {[%emt 00:00:21]} Be6 {[%clk 00:02:38]} {[%emt
00:00:07]} 12. Re1 {[%clk 00:02:38]} {[%emt 00:00:04]} Qe7 {[%clk 00:02:09]}
{[%emt 00:00:31]} 13. Nf1 {[%clk 00:02:24]} {[%emt 00:00:17]} Rad8 {[%clk
00:02:02]} {[%emt 00:00:09]} 14. Ng3 {[%clk 00:02:19]} {[%emt 00:00:08]} g5
{[%clk 00:01:51]} {[%emt 00:00:13]} 15. Nxg5 {[%clk 00:02:17]} {[%emt
00:00:04]} hxg5 {[%clk 00:01:51]} {[%emt 00:00:01]} 16. Bxg5 {[%clk 00:02:18]}
{[%emt 00:00:02]} Bxc4 {[%clk 00:01:43]} {[%emt 00:00:10]} 17. dxc4 {[%clk
00:01:38]} {[%emt 00:00:41]} Qe6 {[%clk 00:01:10]} {[%emt 00:00:35]} 18. Qf3
{[%clk 00:01:37]} {[%emt 00:00:03]} Ng4 {[%clk 00:00:54]} {[%emt 00:00:18]} 19.
Bxd8 {[%clk 00:01:24]} {[%emt 00:00:15]} Bxf2+ {[%clk 00:00:49]} {[%emt
00:00:07]} 20. Kh1 {[%clk 00:01:25]} {[%emt 00:00:02]} Bxe1 {[%clk 00:00:46]}
{[%emt 00:00:05]} 21. Rxe1 {[%clk 00:01:13]} {[%emt 00:00:13]} Rxd8 {[%clk
00:00:40]} {[%emt 00:00:08]} 22. Nf5 {[%clk 00:01:12]} {[%emt 00:00:03]} Qg6
{[%clk 00:00:36]} {[%emt 00:00:03]} 23. b5 {[%clk 00:01:10]} {[%emt 00:00:06]}
Qh5 {[%clk 00:00:27]} {[%emt 00:00:11]} 24. h3 {[%clk 00:00:59]} {[%emt
00:00:14]} Nf6 {[%clk 00:00:19]} {[%emt 00:00:09]} 25. Qxh5 {[%clk 00:00:51]}
{[%emt 00:00:10]} Nxh5 {[%clk 00:00:20]} {[%emt 00:00:01]} 26. bxc6 {[%clk
00:00:52]} {[%emt 00:00:02]} bxc6 {[%clk 00:00:21]} {[%emt 00:00:01]} 27. Ne7+
{[%clk 00:00:52]} {[%emt 00:00:01]} Kg7 {[%clk 00:00:20]} {[%emt 00:00:01]} 28.
Nxc6 {[%clk 00:00:53]} {[%emt 00:00:03]} Rh8 {[%clk 00:00:17]} {[%emt
00:00:04]} 29. Ne7 {[%clk 00:00:50]} {[%emt 00:00:06]} Nf4 {[%clk 00:00:17]}
{[%emt 00:00:03]} 30. Nf5+ {[%clk 00:00:40]} {[%emt 00:00:11]} Kf6 {[%clk
00:00:17]} {[%emt 00:00:01]} 31. Rb1 {[%clk 00:00:37]} {[%emt 00:00:06]} Nd3
{[%clk 00:00:16]} {[%emt 00:00:03]} 32. Rb7 {[%clk 00:00:31]} {[%emt 00:00:08]}
Rc8 {[%clk 00:00:16]} {[%emt 00:00:02]} 33. Ne3 {[%clk 00:00:25]} {[%emt
00:00:08]} Nc5 {[%clk 00:00:16]} {[%emt 00:00:01]} 34. Nd5+ {[%clk 00:00:24]}
{[%emt 00:00:03]} Ke6 {[%clk 00:00:16]} {[%emt 00:00:01]} 35. Rxc7 {[%clk
00:00:24]} {[%emt 00:00:04]} Rxc7 {[%clk 00:00:15]} {[%emt 00:00:03]} 36. Nxc7+
{[%clk 00:00:24]} {[%emt 00:00:02]} Kd7 {[%clk 00:00:16]} 37. Nd5 {[%clk
00:00:24]} {[%emt 00:00:02]} Nxe4 {[%clk 00:00:16]} {[%emt 00:00:01]} 38. h4
{[%clk 00:00:21]} {[%emt 00:00:06]} Ng3+ {[%clk 00:00:12]} {[%emt 00:00:06]} 39.
Kh2 {[%clk 00:00:21]} {[%emt 00:00:02]} Nf5 {[%clk 00:00:11]} {[%emt 00:00:03]}
40. h5 {[%clk 00:00:20]} {[%emt 00:00:03]} Kc6 {[%clk 00:00:07]} {[%emt
00:00:06]} 41. g4 {[%clk 00:00:16]} {[%emt 00:00:06]} Nh6 {[%clk 00:00:07]}
{[%emt 00:00:02]} 42. Ne7+ {[%clk 00:00:15]} {[%emt 00:00:03]} Kc5 {[%clk
00:00:07]} {[%emt 00:00:01]} 43. Nf5 {[%clk 00:00:15]} {[%emt 00:00:03]} Nxg4+
{[%clk 00:00:08]} {[%emt 00:00:01]} 44. Kg3 {[%clk 00:00:16]} {[%emt 00:00:01]}
Nf6 {[%clk 00:00:07]} {[%emt 00:00:03]} 45. h6 {[%clk 00:00:17]} {[%emt
00:00:01]} Kxc4 {[%clk 00:00:08]} {[%emt 00:00:02]} 46. Ne3+ {[%clk 00:00:17]}
{[%emt 00:00:01]} Kxc3 {[%clk 00:00:08]} {[%emt 00:00:02]} 47. Nd5+ {[%clk
00:00:17]} {[%emt 00:00:01]} Nxd5 {[%clk 00:00:08]} {[%emt 00:00:02]} 48. h7
{[%clk 00:00:18]} {[%emt 00:00:01]} e4 {[%clk 00:00:04]} {[%emt 00:00:06]} 49.
h8=Q+ {[%clk 00:00:19]} {[%emt 00:00:02]} f6 {[%clk 00:00:05]} {[%emt
00:00:01]} 50. Qc8+ {[%clk 00:00:17]} {[%emt 00:00:04]} Kd4 {[%clk 00:00:06]}
{[%emt 00:00:01]} 51. Qxa6 {[%clk 00:00:15]} {[%emt 00:00:03]} e3 {[%clk
00:00:06]} 52. Kf3 {[%clk 00:00:10]} {[%emt 00:00:07]} f5 {[%clk 00:00:07]}
{[%emt 00:00:02]} 53. Qe2 {[%clk 00:00:09]} {[%emt 00:00:02]} f4 {[%clk
00:00:07]} {[%emt 00:00:02]} 54. Qb2+ {[%clk 00:00:08]} {[%emt 00:00:03]} Kc5
{[%clk 00:00:07]} {[%emt 00:00:02]} 55. a5 {[%clk 00:00:08]} {[%emt 00:00:03]}
Nb4 {[%clk 00:00:06]} {[%emt 00:00:04]} 56. Qc3+ {[%clk 00:00:05]} {[%emt
00:00:05]} Kb5 {[%clk 00:00:06]} {[%emt 00:00:02]} 57. Qc7 {[%clk 00:00:03]}
{[%emt 00:00:03]} d5 {[%clk 00:00:04]} {[%emt 00:00:04]} 58. Kxf4 {[%clk
00:00:03]} {[%emt 00:00:02]} e2 {[%clk 00:00:05]} {[%emt 00:00:01]} 59. Qe7
{[%clk 00:00:04]} {[%emt 00:00:01]} Nc6 {[%clk 00:00:04]} {[%emt 00:00:04]} 60.
Qxe2+ {[%clk 00:00:04]} {[%emt 00:00:01]} 1-0

[Event "Biel DQA Blitzn"]
[Site "Biel/Bienne, Switzerland"]
[Date "2022.07.17"]
[Round "11.4"]
[White "Keymer, Cecilia"]
[Black "Avilova, Yulia"]
[Result "0-1"]
[TimeControl "3 min + 2 sec"]
[WhiteElo "1652"]
[BlackElo "1597"]

1. d4 {[%clk 00:03:03]} {[%emt 00:18:38]} d5 {[%clk 00:03:03]} {[%emt
00:00:01]} 2. c4 {[%clk 00:03:04]} e6 {[%clk 00:03:05]} 3. Nc3 {[%clk
00:03:05]} Nf6 {[%clk 00:03:05]} {[%emt 00:00:01]} 4. cxd5 {[%clk 00:03:06]}
{[%emt 00:00:01]} exd5 {[%clk 00:03:06]} 5. Bg5 {[%clk 00:03:07]} Be7 {[%clk
00:03:07]} {[%emt 00:00:02]} 6. e3 {[%clk 00:03:09]} O-O {[%clk 00:03:08]}
{[%emt 00:00:02]} 7. Bd3 {[%clk 00:03:10]} Nbd7 {[%emt 00:00:03]} 8. Qc2 {[%clk
00:03:08]} {[%emt 00:00:03]} h6 {[%clk 00:03:07]} {[%emt 00:00:03]} 9. Bh4
{[%clk 00:03:07]} {[%emt 00:00:02]} b6 {[%clk 00:03:07]} {[%emt 00:00:02]} 10.
Nge2 {[%clk 00:03:03]} {[%emt 00:00:06]} Bb7 {[%clk 00:03:08]} {[%emt
00:00:02]} 11. O-O {[%clk 00:02:50]} {[%emt 00:00:15]} Nh5 {[%clk 00:03:09]} 12.
Bxe7 {[%clk 00:02:45]} {[%emt 00:00:08]} Qxe7 {[%clk 00:03:10]} {[%emt
00:00:01]} 13. Ng3 {[%clk 00:02:45]} {[%emt 00:00:02]} Nhf6 {[%clk 00:03:08]}
{[%emt 00:00:03]} 14. Nf5 {[%clk 00:02:44]} {[%emt 00:00:03]} Qe6 {[%clk
00:03:01]} {[%emt 00:00:09]} 15. Rac1 {[%clk 00:02:28]} {[%emt 00:00:19]} Kh8
{[%clk 00:03:00]} {[%emt 00:00:02]} 16. Qe2 {[%clk 00:02:21]} {[%emt 00:00:09]}
c5 {[%clk 00:02:52]} {[%emt 00:00:10]} 17. Nb5 {[%clk 00:02:10]} {[%emt
00:00:13]} Rac8 {[%clk 00:02:46]} {[%emt 00:00:08]} 18. a3 {[%clk 00:01:42]}
{[%emt 00:00:30]} c4 {[%clk 00:02:41]} {[%emt 00:00:08]} 19. Bb1 {[%clk
00:01:36]} {[%emt 00:00:08]} a6 {[%clk 00:02:39]} {[%emt 00:00:04]} 20. Nbd6
{[%clk 00:01:34]} {[%emt 00:00:04]} Rb8 {[%clk 00:02:33]} {[%emt 00:00:08]} 21.
Qc2 {[%clk 00:01:17]} {[%emt 00:00:20]} g6 {[%clk 00:02:27]} {[%emt 00:00:08]}
22. Nxb7 {[%clk 00:01:11]} {[%emt 00:00:07]} gxf5 {[%clk 00:02:28]} {[%emt
00:00:01]} 23. Nd6 {[%clk 00:00:42]} {[%emt 00:00:32]} Qxd6 {[%clk 00:02:22]}
{[%emt 00:00:08]} 24. Qxf5 {[%clk 00:00:43]} Qe6 {[%clk 00:02:19]} {[%emt
00:00:05]} 25. Qf3 {[%clk 00:00:38]} {[%emt 00:00:06]} Qg4 {[%clk 00:02:17]}
{[%emt 00:00:04]} 26. Qxg4 {[%clk 00:00:18]} {[%emt 00:00:23]} Nxg4 {[%clk
00:02:17]} 27. Bf5 {[%clk 00:00:15]} {[%emt 00:00:05]} Ngf6 {[%clk 00:02:18]}
{[%emt 00:00:01]} 28. f3 {[%clk 00:00:14]} {[%emt 00:00:03]} b5 {[%clk
00:02:19]} 29. e4 {[%clk 00:00:14]} {[%emt 00:00:02]} Nb6 {[%clk 00:02:17]}
{[%emt 00:00:04]} 30. e5 {[%clk 00:00:12]} {[%emt 00:00:04]} Nfd7 {[%clk
00:02:16]} {[%emt 00:00:03]} 31. f4 {[%clk 00:00:10]} {[%emt 00:00:04]} a5
{[%clk 00:02:14]} {[%emt 00:00:04]} 32. Rf3 {[%clk 00:00:09]} {[%emt 00:00:03]}
Rg8 {[%clk 00:02:06]} {[%emt 00:00:09]} 33. Rh3 {[%clk 00:00:09]} {[%emt
00:00:02]} Kg7 {[%clk 00:02:07]} 34. Rcc3 {[%clk 00:00:09]} {[%emt 00:00:02]}
b4 {[%clk 00:02:01]} {[%emt 00:00:08]} 35. Rcg3+ {[%clk 00:00:09]} {[%emt
00:00:01]} Kf8 {[%clk 00:02:02]} {[%emt 00:00:01]} 36. axb4 {[%clk 00:00:07]}
{[%emt 00:00:04]} Rxg3 {[%clk 00:02:02]} {[%emt 00:00:03]} 37. Rxg3 {[%clk
00:00:07]} {[%emt 00:00:02]} axb4 {[%clk 00:02:02]} {[%emt 00:00:02]} 38. Bh7
{[%clk 00:00:06]} {[%emt 00:00:03]} Na4 {[%clk 00:01:55]} {[%emt 00:00:09]} 0-1

[ePGN "0.1;DGT LiveChess/2.2.5"]

[Event "Biel DQA Blitzn"]
[Site "Biel/Bienne, Switzerland"]
[Date "2022.07.17"]
[Round "12.1"]
[White "Cornileau, Juliette"]
[Black "Keymer, Cecilia"]
[Result "1/2-1/2"]
[TimeControl "3 min + 2 sec"]
[WhiteElo "1653"]
[BlackElo "1652"]

1. d4 {[%clk 00:03:02]} {[%emt 00:00:01]} d5 {[%clk 00:03:04]} 2. c4 {[%clk
00:03:03]} c6 {[%clk 00:03:05]} 3. Nc3 {[%clk 00:02:59]} {[%emt 00:00:06]} Nf6
{[%clk 00:03:06]} {[%emt 00:00:01]} 4. cxd5 {[%clk 00:02:56]} {[%emt 00:00:05]}
cxd5 {[%clk 00:03:07]} {[%emt 00:00:01]} 5. Nf3 {[%clk 00:02:53]} {[%emt
00:00:05]} Nc6 {[%clk 00:02:58]} {[%emt 00:00:11]} 6. e3 {[%clk 00:02:51]}
{[%emt 00:00:05]} Bg4 {[%clk 00:02:55]} {[%emt 00:00:05]} 7. h3 {[%clk
00:02:51]} {[%emt 00:00:01]} Bh5 {[%clk 00:02:54]} {[%emt 00:00:04]} 8. Be2
{[%clk 00:02:52]} e6 {[%clk 00:02:51]} {[%emt 00:00:05]} 9. O-O {[%clk
00:02:53]} {[%emt 00:00:02]} a6 {[%clk 00:02:47]} {[%emt 00:00:06]} 10. Qb3
{[%clk 00:02:53]} {[%emt 00:00:02]} Qc7 {[%clk 00:02:43]} {[%emt 00:00:06]} 11.
Na4 {[%clk 00:02:36]} {[%emt 00:00:20]} Bd6 {[%clk 00:02:35]} {[%emt 00:00:10]}
12. Nb6 {[%clk 00:02:26]} {[%emt 00:00:12]} Rb8 {[%clk 00:02:27]} {[%emt
00:00:09]} 13. Na4 {[%clk 00:01:43]} {[%emt 00:00:46]} O-O {[%clk 00:02:24]}
{[%emt 00:00:04]} 14. Bd2 {[%clk 00:01:32]} {[%emt 00:00:13]} Ne4 {[%clk
00:02:19]} {[%emt 00:00:07]} 15. Rfd1 {[%clk 00:01:01]} {[%emt 00:00:33]} Nxd2
{[%clk 00:02:11]} {[%emt 00:00:10]} 16. Rxd2 {[%clk 00:01:01]} {[%emt
00:00:02]} Qe7 {[%clk 00:02:09]} {[%emt 00:00:04]} 17. Rc1 {[%clk 00:00:39]}
{[%emt 00:00:24]} Rfc8 {[%clk 00:01:29]} {[%emt 00:00:42]} 18. Rdc2 {[%clk
00:00:40]} {[%emt 00:00:01]} Qd8 {[%clk 00:01:08]} {[%emt 00:00:23]} 19. Nb6
{[%clk 00:00:28]} {[%emt 00:00:15]} Rc7 {[%clk 00:01:07]} {[%emt 00:00:02]} 20.
a3 {[%clk 00:00:26]} {[%emt 00:00:03]} Na5 {[%clk 00:00:44]} {[%emt 00:00:25]}
21. Qa4 {[%clk 00:00:06]} {[%emt 00:00:23]} Rxc2 {[%clk 00:00:38]} {[%emt
00:00:08]} 22. Qxc2 {[%clk 00:00:07]} {[%emt 00:00:01]} Qxb6 {[%clk 00:00:36]}
{[%emt 00:00:04]} 23. Ne5 {[%clk 00:00:06]} {[%emt 00:00:03]} Bxe5 {[%clk
00:00:27]} {[%emt 00:00:11]} 24. Qc8+ {[%clk 00:00:06]} {[%emt 00:00:02]} Qd8
{[%clk 00:00:27]} {[%emt 00:00:03]} 25. Qxd8+ {[%clk 00:00:06]} {[%emt
00:00:02]} Rxd8 {[%clk 00:00:28]} {[%emt 00:00:01]} 26. Bxh5 {[%clk 00:00:07]}
{[%emt 00:00:01]} Bd6 {[%clk 00:00:27]} {[%emt 00:00:03]} 27. Be2 {[%clk
00:00:04]} {[%emt 00:00:05]} Nc6 {[%clk 00:00:26]} {[%emt 00:00:03]} 28. Bxa6
{[%clk 00:00:04]} {[%emt 00:00:01]} bxa6 {[%clk 00:00:26]} {[%emt 00:00:02]} 29.
Rxc6 {[%clk 00:00:05]} g6 {[%clk 00:00:20]} {[%emt 00:00:08]} 30. Rxa6 {[%clk
00:00:06]} {[%emt 00:00:01]} Kg7 {[%clk 00:00:21]} 31. b4 {[%clk 00:00:06]}
{[%emt 00:00:03]} Be7 {[%clk 00:00:22]} {[%emt 00:00:01]} 32. Rc6 {[%clk
00:00:05]} {[%emt 00:00:03]} Ra8 {[%clk 00:00:23]} {[%emt 00:00:01]} 33. Rc7
{[%clk 00:00:04]} {[%emt 00:00:03]} Bd6 {[%clk 00:00:22]} {[%emt 00:00:03]} 34.
Rc6 {[%clk 00:00:05]} {[%emt 00:00:02]} Be7 {[%clk 00:00:23]} 35. Rc7 {[%clk
00:00:06]} Bd6 {[%clk 00:00:23]} {[%emt 00:00:02]} 36. Rc6 {[%clk 00:00:07]}
Be7 {[%clk 00:00:19]} {[%emt 00:00:07]} 37. Rc7 {[%clk 00:00:09]} Bd6 {[%clk
00:00:20]} 1/2-1/2